[Event "IV Jugando con las Estrellas 2019"]
[Site "Santa Cruz de la Palma"]
[Date "2019.08.09"]
[Round "1.1"]
[White "Pakleza, Zbigniew"]
[Black "Mamani Beltran, Deniman"]
[Result "1-0"]
[ECO "A14"]
[WhiteElo "2499"]
[BlackElo "1876"]
[Annotator "ChessBase"]
[PlyCount "45"]
[EventDate "2019.08.09"]
[EventType "swiss"]
[EventCountry "ESP"]
[SourceTitle "playchess.com"]
[Source "ChessBase"]
[SourceQuality "1"]
[TimeControl "5400+30"]

1. Nf3 {[%emt 0:00:00]} Nf6 {[%emt 0:00:00]} 2. c4 {[%emt 0:00:00]} e6 {[%emt 0:00:17]} 3. g3 {[%emt 0:00:00]} d5 {[%emt 0:00:47]} 4. Bg2 {[%emt 0:00:00]} Be7 {[%emt 0:00:39]} 5. b3 {[%emt 0:00:04]} O-O {[%emt 0:01:33]} 6. O-O {[%emt 0:00:05]} c5 {[%emt 0:01:47]} 7. Bb2 {[%emt 0:00:36]} Nc6 {[%emt 0:01:34]} 8. e3 {[%emt 0:00:09]} d4 {[%emt 0:02:06]} 9. exd4 {[%emt 0:00:22]} cxd4 {[%emt 0:00:28]} 10. Re1 {[%emt 0:00:11]} Re8 {[%emt 0:01:57]} 11. d3 {[%emt 0:08:30]} Bf8 {[%emt 0:02:40]} 12. Ne5 {[%emt 0:02:25]} Nxe5 {[%emt 0:02:19]} 13. Rxe5 {[%emt 0:00:01]} Nd7 {[%emt 0:00:22]} 14. Re1 {[%emt 0:02:19]} e5 {[%emt 0:00:55]} 15. Ba3 {[%emt 0:04:29]} Qb6 {[%emt 0:07:10]} 16. Bxf8 {[%emt 0:04:14]} Kxf8 {[%emt 0:02:09]} 17. Nd2 {[%emt 0:07:23]} f5 {[%emt 0:02:23]} 18. Nf3 {[%emt 0:10:35]} Qd6 {[%emt 0:04:38]} 19. Qd2 {[%emt 0:01:54]} a5 {[%emt 0:03:58]} 20. Re2 {[%emt 0:00:32]} h6 {[%emt 0:03:12]} 21. Rae1 {[%emt 0:01:50]} Qb4 {[%emt 0:01:59]} 22. Qd1 {[%emt 0:03:58]} Qc5 {[%emt 0:00:35]} 23. Nh4 {[%emt 0:12:40]} 1-0

[Event "IV Jugando con las Estrellas 2019"]
[Site "Santa Cruz de la Palma"]
[Date "2019.08.09"]
[Round "1.3"]
[White "Lemos, Damian"]
[Black "Vicens Company, Maria Antonia"]
[Result "1-0"]
[ECO "B38"]
[WhiteElo "2487"]
[BlackElo "1858"]
[Annotator "RC"]
[PlyCount "63"]
[EventDate "2019.08.09"]
[EventType "swiss"]
[EventCountry "ESP"]
[SourceTitle "playchess.com"]
[Source "ChessBase"]
[SourceQuality "1"]
[TimeControl "5400+30"]

1. c4 {[%emt 0:00:00]} Nf6 {[%emt 0:00:00]} 2. Nc3 {[%emt 0:00:00]} c5 {[%emt 0:01:16]} 3. Nf3 {[%emt 0:00:00]} g6 {[%emt 0:00:16]} 4. e4 {[%emt 0:00:14]} d6 {[%emt 0:00:23]} 5. d4 {[%emt 0:00:04]} cxd4 {[%emt 0:00:35]} 6. Nxd4 {[%emt 0:00:04]} Bg7 {[%emt 0:01:13]} 7. Be2 {[%emt 0:00:05]} O-O {[%emt 0:01:20]} 8. O-O {[%emt 0:00:10]} Nc6 {[%emt 0:00:34]} 9. Be3 {[%emt 0:01:35]} Be6 {[%emt 0:11:33]} 10. Nxe6 {[%emt 0:00:27]} fxe6 {[%emt 0:00:07]} 11. Qb3 {[%emt 0:02:48]} Na5 {[%emt 0:03:10]} 12. Qa4 {[%emt 0:01:43]} b6 {[%emt 0:01:08]} 13. b4 {[%emt 0:07:22]} Nb7 {[%emt 0:03:53]} 14. Qa6 {[%emt 0:00:25]} Qc8 {[%emt 0:06:00]} 15. Rac1 {[%emt 0:04:24]} Nd8 {[%emt 0:04:50]} 16. Qa4 {[%emt 0:02:28]} Qb7 {[%emt 0:04:44]} 17. c5 {[%emt 0:06:26]} d5 {[%emt 0:05:21]} 18. Rfd1 {[%emt 0:05:49]} dxe4 {[%emt 0:10:07]} 19. h3 {[%emt 0:02:43]} Nd5 {[%emt 0:04:43]} 20. Nxd5 {[%emt 0:00:39]} exd5 {[%emt 0:00:17]} 21. c6 {[%emt 0:02:32]} Qc7 {[%emt 0:02:13]} 22. Rxd5 {[%emt 0:01:02]} Nf7 {[%emt 0:05:11]} 23. Qb3 {[%emt 0:01:46]} Kh8 {[%emt 0:00:49]} 24. Rd7 {[%emt 0:02:35]} Qe5 {[%emt 0:01:09]} 25. Bd4 {[%emt 0:09:22]} Qg5 {[%emt 0:00:46]} 26. Bxg7+ {[%emt 0:01:07]} Kxg7 {[%emt 0:00:03]} 27. Qc3+ {[%emt 0:01:19]} Kh6 {[%emt 0:02:08]} 28. Qe3 {[%emt 0:07:45]} Qxe3 {[%emt 0:03:17]} 29. fxe3 {[%emt 0:00:04]} Nd6 {[%emt 0:05:16]} 30. Ba6 {[%emt 0:01:17]} Rfe8 {[%emt 0:01:58]} 31. c7 {[%emt 0:01:26]} Kg7 {[%emt 0:02:20]} 32. Rc6 {[%emt 0:01:12]} 1-0

[Event "IV Jugando con las Estrellas 2019"]
[Site "Santa Cruz de la Palma"]
[Date "2019.08.09"]
[Round "1.4"]
[White "Tajedine, Sidi Mohamed"]
[Black "Kolosowski, Mateusz"]
[Result "0-1"]
[ECO "A16"]
[WhiteElo "1851"]
[BlackElo "2458"]
[Annotator "ChessBase"]
[PlyCount "86"]
[EventDate "2019.08.09"]
[EventType "swiss"]
[EventCountry "ESP"]
[SourceTitle "playchess.com"]
[Source "ChessBase"]
[SourceQuality "1"]
[TimeControl "5400+30"]

1. Nf3 {[%emt 0:00:00]} Nf6 {[%emt 0:00:00]} 2. g3 {[%emt 0:00:46]} g6 {[%emt 0:00:00]} 3. Bg2 {[%emt 0:00:07]} Bg7 {[%emt 0:00:00]} 4. c4 {[%emt 0:00:57]} d5 {[%emt 0:00:55]} 5. cxd5 {[%emt 0:01:52]} Nxd5 {[%emt 0:00:51]} 6. O-O {[%emt 0:00:21]} O-O {[%emt 0:01:37]} 7. Nc3 {[%emt 0:00:37]} Nb6 {[%emt 0:01:33]} 8. d3 {[%emt 0:04:08]} Nc6 {[%emt 0:00:54]} 9. Be3 {[%emt 0:02:09]} e5 {[%emt 0:02:09]} 10. Qd2 {[%emt 0:00:50]} Re8 {[%emt 0:05:55]} 11. Bh6 {[%emt 0:03:12]} Bh8 {[%emt 0:05:22]} 12. Rfd1 {[%emt 0:01:46]} Bf5 {[%emt 0:09:40]} 13. Rac1 {[%emt 0:06:19]} Qe7 {[%emt 0:09:24]} 14. a3 {[%emt 0:03:54]} Rad8 {[%emt 0:03:24]} 15. Qe1 {[%emt 0:06:35]} Bc8 {[%emt 0:12:07]} 16. Ne4 {[%emt 0:03:19]} f5 {[%emt 0:03:55]} 17. Bg5 {[%emt 0:02:18]} Qf8 {[%emt 0:00:06]} 18. Nc5 {[%emt 0:01:50]} Rd6 {[%emt 0:01:17]} 19. Bd2 {[%emt 0:03:18]} Bf6 {[%emt 0:05:31]} 20. Bc3 {[%emt 0:01:49]} Nd5 {[%emt 0:01:41]} 21. Nd2 {[%emt 0:04:52]} Nxc3 {[%emt 0:04:07]} 22. bxc3 {[%emt 0:00:38]} Rdd8 {[%emt 0:00:14]} 23. Ncb3 {[%emt 0:04:16]} Qxa3 {[%emt 0:01:08]} 24. Bxc6 {[%emt 0:00:49]} bxc6 {[%emt 0:00:02]} 25. Ra1 {[%emt 0:00:10]} Qe7 {[%emt 0:00:39]} 26. Rxa7 {[%emt 0:00:21]} e4 {[%emt 0:00:15]} 27. d4 {[%emt 0:08:57]} e3 {[%emt 0:01:17]} 28. Nf3 {[%emt 0:01:11]} Be6 {[%emt 0:01:24]} 29. Nc5 {[%emt 0:00:10]} Bd5 {[%emt 0:00:24]} 30. Nd3 {[%emt 0:04:15]} exf2+ {[%emt 0:00:44]} 31. Qxf2 {[%emt 0:01:02]} Qxe2 {[%emt 0:00:10]} 32. Qxe2 {[%emt 0:03:01]} Rxe2 {[%emt 0:00:15]} 33. Nfe5 {[%emt 0:01:16]} Rg2+ {[%emt 0:01:25]} 34. Kf1 {[%emt 0:00:05]} Rxh2 {[%emt 0:00:26]} 35. Rxc7 {[%emt 0:02:07]} Ra8 {[%emt 0:02:30]} 36. Nb4 {[%emt 0:04:21]} Bxe5 {[%emt 0:01:24]} 37. dxe5 {[%emt 0:02:44]} Rh1+ {[%emt 0:00:06]} 38. Ke2 {[%emt 0:01:41]} Bc4+ {[%emt 0:00:08]} 39. Rd3 {[%emt 0:02:38]} Ra5 {[%emt 0:10:12]} 40. Nxc6 {[%emt 0:04:20]} Ra2+ {[%emt 0:00:33]} 41. Ke3 {[%emt 0:00:11]} Re1+ {[%emt 0:00:08]} 42. Kf4 {[%emt 0:02:07]} Bxd3 {[%emt 0:00:19]} 43. Kg5 {[%emt 0:01:41]} Ra8 {[%emt 0:00:51]} 0-1

[Event "IV Jugando con las Estrellas 2019"]
[Site "Santa Cruz de la Palma"]
[Date "2019.08.09"]
[Round "1.5"]
[White "Pap, Misa"]
[Black "Alba Santana, Cayetano"]
[Result "1-0"]
[ECO "C67"]
[WhiteElo "2454"]
[BlackElo "1835"]
[Annotator "ChessBase"]
[PlyCount "165"]
[EventDate "2019.08.09"]
[EventType "swiss"]
[EventCountry "ESP"]
[SourceTitle "playchess.com"]
[Source "ChessBase"]
[SourceQuality "1"]
[TimeControl "5400+30"]

1. e4 {[%emt 0:00:00]} e5 {[%emt 0:00:00]} 2. Nf3 {[%emt 0:00:01]} Nc6 {[%emt 0:00:08]} 3. Bb5 {[%emt 0:00:06]} Nf6 {[%emt 0:00:56]} 4. O-O {[%emt 0:04:27]} Nxe4 {[%emt 0:14:58]} 5. Re1 {[%emt 0:00:04]} Nd6 {[%emt 0:01:20]} 6. Nxe5 {[%emt 0:00:05]} Nxe5 {[%emt 0:01:05]} 7. Rxe5+ {[%emt 0:00:05]} Be7 {[%emt 0:00:08]} 8. Bd3 {[%emt 0:00:06]} O-O {[%emt 0:03:54]} 9. Nc3 {[%emt 0:00:02]} Bf6 {[%emt 0:03:43]} 10. Re3 {[%emt 0:02:05]} g6 {[%emt 0:06:14]} 11. b3 {[%emt 0:07:37]} Re8 {[%emt 0:01:42]} 12. Ba3 {[%emt 0:03:34]} Rxe3 {[%emt 0:14:44]} 13. fxe3 {[%emt 0:00:27]} Ne8 {[%emt 0:00:40]} 14. Nd5 {[%emt 0:02:45]} Bg5 {[%emt 0:04:37]} 15. Qf3 {[%emt 0:01:12]} d6 {[%emt 0:05:44]} 16. Rf1 {[%emt 0:00:15]} Be6 {[%emt 0:10:52]} 17. Nf4 {[%emt 0:00:40]} Bxf4 {[%emt 0:00:26]} 18. Qxf4 {[%emt 0:11:50]} a6 {[%emt 0:06:12]} 19. Bb2 {[%emt 0:01:41]} Ng7 {[%emt 0:06:29]} 20. Bf6 {[%emt 0:09:35]} Nh5 {[%emt 0:08:13]} 21. Bxd8 {[%emt 0:00:08]} Nxf4 {[%emt 0:00:02]} 22. Bxc7 {[%emt 0:00:06]} Nxd3 {[%emt 0:00:13]} 23. cxd3 {[%emt 0:00:02]} d5 {[%emt 0:00:51]} 24. Be5 {[%emt 0:00:51]} Rc8 {[%emt 0:02:06]} 25. Bc3 {[%emt 0:00:40]} Bf5 {[%emt 0:00:16]} 26. d4 {[%emt 0:00:16]} Rc6 {[%emt 0:00:46]} 27. Rf4 {[%emt 0:02:00]} Bd3 {[%emt 0:00:59]} 28. h4 {[%emt 0:18:08]} f5 29. Rf3 {[%emt 0:03:37]} Be4 {[%emt 0:01:07]} 30. Rf1 {[%emt 0:00:00]} Bd3 31. Rc1 {[%emt 0:00:55]} Kf7 {[%emt 0:00:45]} 32. Kf2 {[%emt 0:00:04]} Kf6 {[%emt 0:01:00]} 33. a4 {[%emt 0:00:00]} Ke6 {[%emt 0:01:02]} 34. Kg3 {[%emt 0:00:00]} Be4 {[%emt 0:02:19]} 35. Ra1 {[%emt 0:00:00]} Bd3 {[%emt 0:00:16]} 36. a5 {[%emt 0:00:12]} Bc2 {[%emt 0:00:46]} 37. Kf4 {[%emt 0:00:25]} h6 {[%emt 0:00:41]} 38. Kf3 {[%emt 0:03:39]} Bd3 {[%emt 0:00:15]} 39. Bb4 {[%emt 0:00:25]} Rc8 {[%emt 0:00:50]} 40. Bc5 {[%emt 0:00:18]} Be4+ {[%emt 0:01:51]} 41. Kf2 {[%emt 0:02:42]} Bd3 {[%emt 0:00:06]} 42. Rc1 {[%emt 0:00:13]} Rc6 {[%emt 0:00:30]} 43. Rc3 {[%emt 0:00:08]} Bb5 {[%emt 0:00:30]} 44. Kf3 {[%emt 0:01:43]} Kf6 {[%emt 0:01:08]} 45. d3 {[%emt 0:02:21]} Kf7 {[%emt 0:01:24]} 46. Ke2 {[%emt 0:02:43]} Re6 {[%emt 0:00:17]} 47. g3 {[%emt 0:00:35]} Bc6 {[%emt 0:00:15]} 48. Rc1 {[%emt 0:00:10]} h5 {[%emt 0:00:18]} 49. Kf3 {[%emt 0:00:04]} Bb5 {[%emt 0:00:20]} 50. Rd1 {[%emt 0:00:18]} Bc6 {[%emt 0:00:05]} 51. Kf4 {[%emt 0:00:04]} Kf6 {[%emt 0:00:30]} 52. Bb6 {[%emt 0:00:15]} Ke7 {[%emt 0:00:24]} 53. Rc1 {[%emt 0:00:50]} Kd7 {[%emt 0:00:16]} 54. Rc5 {[%emt 0:00:58]} Re8 {[%emt 0:00:40]} 55. b4 {[%emt 0:00:52]} Re6 {[%emt 0:00:09]} 56. Rc1 {[%emt 0:01:40]} Re8 {[%emt 0:00:13]} 57. Bc5 {[%emt 0:01:27]} Bb5 {[%emt 0:00:27]} 58. Rd1 {[%emt 0:00:07]} Bc6 {[%emt 0:00:04]} 59. Ba7 {[%emt 0:05:31]} Bb5 {[%emt 0:01:08]} 60. Bb6 {[%emt 0:01:23]} Bc6 {[%emt 0:00:10]} 61. Re1 {[%emt 0:01:20]} Re6 {[%emt 0:00:48]} 62. Kg5 {[%emt 0:00:23]} Bb5 {[%emt 0:01:29]} 63. Ba7 {[%emt 0:00:03]} Bxd3 {[%emt 0:00:14]} 64. Bb8 {[%emt 0:00:01]} Bb5 {[%emt 0:01:08]} 65. Be5 {[%emt 0:00:02]} Ke7 {[%emt 0:00:13]} 66. Rc1 {[%emt 0:00:09]} Bc6 {[%emt 0:00:13]} 67. Rc5 {[%emt 0:00:23]} Kf7 {[%emt 0:00:23]} 68. Kh6 {[%emt 0:00:08]} Re8 {[%emt 0:00:25]} 69. b5 {[%emt 0:00:34]} Bxb5 {[%emt 0:01:54]} 70. Rxd5 {[%emt 0:04:06]} Bc6 {[%emt 0:00:31]} 71. Rc5 {[%emt 0:00:32]} Rd8 {[%emt 0:00:23]} 72. Rc1 {[%emt 0:00:41]} Rd5 {[%emt 0:00:08]} 73. e4 {[%emt 0:02:48]} Rxa5 {[%emt 0:00:41]} 74. exf5 {[%emt 0:00:05]} gxf5 {[%emt 0:00:09]} 75. Kxh5 {[%emt 0:00:08]} Be4 {[%emt 0:01:11]} 76. Kg5 {[%emt 0:00:55]} Rd5 {[%emt 0:00:29]} 77. h5 {[%emt 0:01:44]} Rd7 {[%emt 0:00:20]} 78. h6 {[%emt 0:00:14]} Ke6 {[%emt 0:00:30]} 79. Re1 {[%emt 0:01:14]} Kd5 {[%emt 0:00:36]} 80. Kf4 {[%emt 0:00:42]} Rh7 {[%emt 0:00:34]} 81. Bg7 {[%emt 0:00:01]} b5 {[%emt 0:00:30]} 82. g4 {[%emt 0:00:06]} Bd3 {[%emt 0:00:32]} 83. g5 {[%emt 0:00:05]} 1-0

[Event "IV Jugando con las Estrellas 2019"]
[Site "Santa Cruz de la Palma"]
[Date "2019.08.09"]
[Round "1.6"]
[White "Boix Pons, Catalina"]
[Black "Minzer, Claudio Javier"]
[Result "0-1"]
[ECO "E90"]
[WhiteElo "1831"]
[BlackElo "2448"]
[Annotator "ChessBase"]
[PlyCount "94"]
[EventDate "2019.08.09"]
[EventType "swiss"]
[EventCountry "ESP"]
[SourceTitle "playchess.com"]
[Source "ChessBase"]
[SourceQuality "1"]
[TimeControl "5400+30"]

1. d4 {[%emt 0:00:00]} Nf6 {[%emt 0:00:00]} 2. Nf3 {[%emt 0:00:00]} g6 {[%emt 0:00:32]} 3. c4 {[%emt 0:00:24]} Bg7 {[%emt 0:01:45]} 4. Nc3 {[%emt 0:00:26]} O-O {[%emt 0:00:18]} 5. e4 {[%emt 0:00:15]} d6 {[%emt 0:00:09]} 6. h3 {[%emt 0:02:14]} c5 {[%emt 0:01:51]} 7. d5 {[%emt 0:01:07]} e6 {[%emt 0:00:46]} 8. Be2 {[%emt 0:00:41]} Na6 {[%emt 0:05:39]} 9. Be3 {[%emt 0:03:40]} exd5 {[%emt 0:02:58]} 10. exd5 {[%emt 0:01:33]} Re8 {[%emt 0:02:07]} 11. O-O {[%emt 0:02:35]} Ne4 {[%emt 0:02:10]} 12. Nxe4 {[%emt 0:03:28]} Rxe4 {[%emt 0:00:07]} 13. Qd2 {[%emt 0:00:41]} Qb6 {[%emt 0:02:43]} 14. Rab1 {[%emt 0:03:29]} Re8 {[%emt 0:03:42]} 15. b4 {[%emt 0:03:13]} Qc7 {[%emt 0:03:25]} 16. b5 {[%emt 0:01:09]} Nb8 {[%emt 0:00:08]} 17. Bd3 {[%emt 0:01:48]} Nd7 {[%emt 0:01:15]} 18. Rfe1 {[%emt 0:04:11]} Nf6 {[%emt 0:04:50]} 19. a4 {[%emt 0:03:33]} Bd7 {[%emt 0:01:36]} 20. a5 {[%emt 0:01:08]} Ne4 {[%emt 0:03:52]} 21. Bxe4 {[%emt 0:03:46]} Rxe4 {[%emt 0:00:09]} 22. b6 {[%emt 0:02:39]} axb6 {[%emt 0:01:59]} 23. Rxb6 {[%emt 0:03:25]} Ra6 {[%emt 0:03:19]} 24. Reb1 {[%emt 0:03:56]} Rxb6 {[%emt 0:00:06]} 25. axb6 {[%emt 0:00:55]} Qd8 {[%emt 0:01:25]} 26. Qa2 {[%emt 0:02:57]} Bf5 {[%emt 0:04:42]} 27. Rb5 {[%emt 0:04:54]} Qd7 {[%emt 0:04:54]} 28. Ra5 {[%emt 0:06:32]} h6 {[%emt 0:02:29]} 29. Ra8+ {[%emt 0:04:55]} Re8 {[%emt 0:03:55]} 30. Qa7 {[%emt 0:01:35]} Rxa8 {[%emt 0:01:25]} 31. Qxa8+ {[%emt 0:00:12]} Qc8 {[%emt 0:00:23]} 32. Qa7 {[%emt 0:04:33]} g5 {[%emt 0:00:51]} 33. Qa2 {[%emt 0:05:33]} Qe8 {[%emt 0:04:09]} 34. Qa7 {[%emt 0:03:20]} Qc8 {[%emt 0:00:40]} 35. Qa4 {[%emt 0:01:41]} Bf6 {[%emt 0:01:35]} 36. Bd2 {[%emt 0:04:33]} Kg7 {[%emt 0:05:50]} 37. Qb3 {[%emt 0:01:04]} Qd8 {[%emt 0:01:05]} 38. Nh2 {[%emt 0:01:40]} Bg6 {[%emt 0:02:38]} 39. Ng4 {[%emt 0:00:28]} Bd4 {[%emt 0:00:10]} 40. Bc3 {[%emt 0:00:57]} f5 {[%emt 0:01:20]} 41. Ne3 {[%emt 0:01:04]} Qf6 {[%emt 0:01:08]} 42. Bd2 {[%emt 0:00:30]} f4 {[%emt 0:03:49]} 43. Nd1 {[%emt 0:01:29]} Qf5 {[%emt 0:03:49]} 44. Nc3 {[%emt 0:03:11]} Qd3 {[%emt 0:01:09]} 45. Be1 {[%emt 0:01:15]} f3 {[%emt 0:01:10]} 46. Qa3 {[%emt 0:05:03]} fxg2 {[%emt 0:00:30]} 47. Kxg2 {[%emt 0:02:52]} Be4+ 0-1

[Event "IV Jugando con las Estrellas 2019"]
[Site "Santa Cruz de la Palma"]
[Date "2019.08.09"]
[Round "1.7"]
[White "Barbot, Pierre"]
[Black "Diaz Reyes, Franklin"]
[Result "1-0"]
[ECO "C14"]
[WhiteElo "2441"]
[BlackElo "1818"]
[Annotator "ChessBase"]
[PlyCount "65"]
[EventDate "2019.08.09"]
[EventType "swiss"]
[EventCountry "ESP"]
[SourceTitle "playchess.com"]
[Source "ChessBase"]
[SourceQuality "1"]
[TimeControl "5400+30"]

1. e4 {[%emt 0:00:00]} e6 {[%emt 0:00:00]} 2. d4 {[%emt 0:00:00]} d5 {[%emt 0:00:00]} 3. Nc3 {[%emt 0:00:00]} Nf6 {[%emt 0:00:00]} 4. Bg5 {[%emt 0:00:00]} Be7 {[%emt 0:00:00]} 5. e5 {[%emt 0:00:00]} Nfd7 {[%emt 0:00:03]} 6. Bxe7 {[%emt 0:00:00]} Qxe7 {[%emt 0:00:04]} 7. f4 {[%emt 0:00:00]} O-O {[%emt 0:00:58]} 8. Nf3 {[%emt 0:00:48]} c5 {[%emt 0:02:42]} 9. dxc5 {[%emt 0:01:21]} Nxc5 {[%emt 0:01:12]} 10. Bd3 {[%emt 0:00:07]} Nxd3+ {[%emt 0:13:02]} 11. Qxd3 {[%emt 0:00:41]} h6 {[%emt 0:02:08]} 12. O-O-O {[%emt 0:01:05]} a5 {[%emt 0:04:33]} 13. h4 {[%emt 0:01:34]} f5 {[%emt 0:08:51]} 14. exf6 {[%emt 0:01:58]} Qxf6 {[%emt 0:00:47]} 15. g3 {[%emt 0:00:04]} b6 {[%emt 0:17:27]} 16. Rhe1 {[%emt 0:00:12]} Nd7 {[%emt 0:04:04]} 17. Nxd5 {[%emt 0:03:04]} Qf7 {[%emt 0:08:46]} 18. Nc3 {[%emt 0:00:15]} Nc5 {[%emt 0:01:19]} 19. Qd6 {[%emt 0:01:17]} Ra6 {[%emt 0:08:58]} 20. Ne5 {[%emt 0:01:52]} Qe8 {[%emt 0:06:08]} 21. Qc7 {[%emt 0:05:39]} Bb7 {[%emt 0:04:33]} 22. Rd6 {[%emt 0:01:21]} Qc8 {[%emt 0:01:57]} 23. Qxc8 {[%emt 0:00:18]} Rxc8 {[%emt 0:00:10]} 24. Nd7 {[%emt 0:00:44]} Nxd7 {[%emt 0:01:41]} 25. Rxd7 {[%emt 0:00:26]} Bf3 {[%emt 0:00:02]} 26. f5 {[%emt 0:03:16]} exf5 {[%emt 0:05:54]} 27. Ree7 {[%emt 0:00:15]} Bg4 {[%emt 0:02:26]} 28. Rxg7+ {[%emt 0:00:46]} Kf8 {[%emt 0:00:03]} 29. Nd5 {[%emt 0:00:15]} b5 {[%emt 0:02:01]} 30. Rgf7+ {[%emt 0:00:19]} Kg8 {[%emt 0:00:54]} 31. Rg7+ {[%emt 0:00:35]} Kf8 {[%emt 0:00:27]} 32. Rdf7+ {[%emt 0:00:50]} Ke8 {[%emt 0:00:20]} 33. Nc7+ {[%emt 0:00:15]} 1-0

[Event "IV Jugando con las Estrellas 2019"]
[Site "Santa Cruz de la Palma"]
[Date "2019.08.09"]
[Round "1.8"]
[White "Mamani Beltran, Daniel"]
[Black "Pile, Richard"]
[Result "0-1"]
[ECO "B14"]
[WhiteElo "1817"]
[BlackElo "2416"]
[Annotator "ChessBase"]
[PlyCount "118"]
[EventDate "2019.08.09"]
[EventType "swiss"]
[EventCountry "ESP"]
[SourceTitle "playchess.com"]
[Source "ChessBase"]
[SourceQuality "1"]
[TimeControl "5400+30"]

1. d4 {[%emt 0:00:00]} Nf6 {[%emt 0:00:00]} 2. c4 {[%emt 0:00:00]} e6 {[%emt 0:00:00]} 3. Nc3 {[%emt 0:00:00]} Bb4 {[%emt 0:00:00]} 4. Qc2 {[%emt 0:00:19]} c5 {[%emt 0:00:00]} 5. e3 {[%emt 0:00:48]} Nc6 {[%emt 0:00:37]} 6. Nf3 {[%emt 0:00:37]} O-O {[%emt 0:00:06]} 7. Bd3 {[%emt 0:01:33]} cxd4 {[%emt 0:07:59]} 8. exd4 {[%emt 0:04:35]} d5 {[%emt 0:00:40]} 9. cxd5 {[%emt 0:00:45]} Qxd5 {[%emt 0:00:08]} 10. O-O {[%emt 0:01:49]} Qd8 {[%emt 0:03:44]} 11. Rd1 {[%emt 0:04:59]} h6 {[%emt 0:00:12]} 12. a3 {[%emt 0:09:03]} Bxc3 {[%emt 0:00:45]} 13. bxc3 {[%emt 0:00:12]} b6 {[%emt 0:00:04]} 14. c4 {[%emt 0:03:19]} Ba6 {[%emt 0:00:19]} 15. d5 {[%emt 0:02:18]} exd5 {[%emt 0:00:10]} 16. cxd5 {[%emt 0:00:10]} Bxd3 {[%emt 0:00:05]} 17. Qxd3 {[%emt 0:01:07]} Ne7 {[%emt 0:02:58]} 18. d6 {[%emt 0:08:50]} Ned5 {[%emt 0:00:05]} 19. Bb2 {[%emt 0:00:10]} Re8 {[%emt 0:00:04]} 20. Be5 {[%emt 0:07:46]} Qd7 {[%emt 0:06:49]} 21. Qb3 {[%emt 0:05:49]} Qe6 {[%emt 0:00:05]} 22. d7 {[%emt 0:01:50]} Red8 {[%emt 0:00:45]} 23. Bxf6 {[%emt 0:00:16]} Nxf6 {[%emt 0:00:05]} 24. Qxe6 {[%emt 0:00:05]} fxe6 {[%emt 0:00:05]} 25. Ne5 {[%emt 0:00:06]} Nd5 {[%emt 0:00:29]} 26. g3 {[%emt 0:06:56]} g5 {[%emt 0:00:10]} 27. Rac1 {[%emt 0:01:31]} Kf8 {[%emt 0:00:07]} 28. f4 {[%emt 0:02:41]} gxf4 {[%emt 0:00:24]} 29. gxf4 {[%emt 0:00:51]} Kg7 {[%emt 0:00:46]} 30. Rxd5 {[%emt 0:02:37]} exd5 {[%emt 0:00:06]} 31. Rc7 {[%emt 0:00:02]} Kf6 {[%emt 0:05:55]} 32. Nc6 {[%emt 0:00:08]} Rg8+ {[%emt 0:00:31]} 33. Kf2 {[%emt 0:00:00]} Ke6 {[%emt 0:00:08]} 34. d8=Q {[%emt 0:00:24]} Rgxd8 {[%emt 0:00:04]} 35. Nxd8+ {[%emt 0:00:12]} Rxd8 {[%emt 0:00:04]} 36. Rxa7 {[%emt 0:00:16]} d4 {[%emt 0:00:10]} 37. Ke2 {[%emt 0:00:06]} Kf5 {[%emt 0:00:12]} 38. Rf7+ {[%emt 0:01:31]} Ke4 {[%emt 0:00:07]} 39. Rf6 {[%emt 0:00:22]} Rc8 {[%emt 0:02:09]} 40. Re6+ {[%emt 0:02:01]} Kd5 {[%emt 0:00:11]} 41. Rxh6 {[%emt 0:00:30]} Rc2+ {[%emt 0:00:08]} 42. Kd3 {[%emt 0:00:22]} Rc3+ {[%emt 0:00:09]} 43. Kd2 {[%emt 0:00:30]} b5 {[%emt 0:00:15]} 44. f5 {[%emt 0:01:49]} Rxa3 {[%emt 0:01:34]} 45. f6 {[%emt 0:00:56]} Rf3 {[%emt 0:00:07]} 46. Ke2 {[%emt 0:04:40]} Rf4 {[%emt 0:00:41]} 47. Kd3 {[%emt 0:00:30]} Rf3+ {[%emt 0:00:05]} 48. Ke2 {[%emt 0:00:05]} Rf5 {[%emt 0:00:04]} 49. Kd3 {[%emt 0:03:38]} b4 {[%emt 0:00:36]} 50. Rh8 {[%emt 0:05:02]} Rf3+ {[%emt 0:00:35]} 51. Kc2 {[%emt 0:01:29]} Rxf6 {[%emt 0:00:44]} 52. Rb8 {[%emt 0:07:26]} Kc5 {[%emt 0:00:10]} 53. h4 {[%emt 0:01:51]} Rf2+ {[%emt 0:00:11]} 54. Kd3 {[%emt 0:00:13]} Rf3+ {[%emt 0:00:12]} 55. Kc2 {[%emt 0:00:42]} d3+ {[%emt 0:01:02]} 56. Kb3 {[%emt 0:01:57]} Rh3 {[%emt 0:00:32]} 57. Rc8+ {[%emt 0:00:15]} Kd4 {[%emt 0:00:40]} 58. Kxb4 {[%emt 0:02:25]} Rh1 {[%emt 0:00:08]} 59. Rd8+ {[%emt 0:01:05]} Ke3 {[%emt 0:00:08]} 0-1

[Event "IV Jugando con las Estrellas 2019"]
[Site "Santa Cruz de la Palma"]
[Date "2019.08.10"]
[Round "2.1"]
[White "Klimentov, Roman"]
[Black "Pakleza, Zbigniew"]
[Result "1/2-1/2"]
[ECO "B06"]
[WhiteElo "2173"]
[BlackElo "2506"]
[Annotator "ChessBase"]
[PlyCount "41"]
[EventDate "2019.08.09"]
[EventType "swiss"]
[EventCountry "ESP"]
[SourceTitle "playchess.com"]
[Source "ChessBase"]
[SourceQuality "1"]
[TimeControl "5400+30"]

1. e4 {[%emt 0:00:00]} g6 {[%emt 0:00:00]} 2. d4 {[%emt 0:00:00]} Bg7 {[%emt 0:00:00]} 3. Nf3 {[%emt 0:00:00]} d6 {[%emt 0:00:00]} 4. Bc4 {[%emt 0:00:03]} Nf6 {[%emt 0:00:08]} 5. Qe2 {[%emt 0:00:23]} O-O {[%emt 0:00:35]} 6. O-O {[%emt 0:00:19]} c6 {[%emt 0:02:00]} 7. Bb3 {[%emt 0:00:23]} d5 {[%emt 0:17:02]} 8. Nbd2 {[%emt 0:09:28]} e6 {[%emt 0:11:41]} 9. e5 {[%emt 0:10:54]} Nfd7 {[%emt 0:00:29]} 10. c4 {[%emt 0:01:51]} b5 {[%emt 0:11:52]} 11. c5 {[%emt 0:05:27]} f6 {[%emt 0:05:46]} 12. exf6 {[%emt 0:01:06]} Qxf6 {[%emt 0:00:07]} 13. Re1 {[%emt 0:01:40]} Re8 {[%emt 0:06:04]} 14. Nf1 {[%emt 0:11:29]} Na6 {[%emt 0:05:57]} 15. Ne3 {[%emt 0:12:08]} Qf8 {[%emt 0:01:30]} 16. Bd2 {[%emt 0:08:14]} Bb7 {[%emt 0:12:57]} 17. Rac1 {[%emt 0:03:31]} e5 {[%emt 0:09:48]} 18. Nxd5 {[%emt 0:02:16]} Kh8 {[%emt 0:00:02]} 19. dxe5 {[%emt 0:11:30]} Ndxc5 {[%emt 0:03:28]} 20. Ne3 {[%emt 0:04:51]} Nxb3 {[%emt 0:00:35]} 21. axb3 {[%emt 0:00:05]} 1/2-1/2